bitfinex/quotes_SOLUSD_20230104
["timestamp","ask_amount","ask_price","bid_price","bid_amount"]
[1672862546403,110.6308,13.23,13.212,20.0]
[1672862546620,110.6308,13.23,13.213,86.81]
[1672862546941,110.6308,13.23,13.215,30.0]
[1672862547151,110.6308,13.23,13.217,30.0]
[1672862550415,110.6308,13.23,13.217,86.79]
[1672862554407,110.6308,13.23,13.217,30.0]
[1672862554598,110.6308,13.23,13.217,86.79]
[1672862554809,110.6308,13.23,13.217,30.0]
[1672862555789,110.6308,13.23,13.217,86.79]
[1672862556204,110.6308,13.23,13.217,30.0]
[1672862558725,110.6308,13.23,13.214,56.8]
[1672862558927,30.0,13.228,13.213,30.0]
[1672862559142,76.75,13.227,13.213,30.0]
[1672862559343,236.40267516,13.227,13.213,30.0]
[1672862559670,159.65267516,13.226,13.213,30.0]
[1672862559887,76.76,13.225,13.213,30.0]
[1672862560097,146.91075686,13.225,13.213,30.0]
[1672862560307,70.15075686,13.224,13.213,30.0]
[1672862560728,51.61740712,13.223,13.213,30.0]
[1672862561462,47.09111987,13.225,13.213,30.0]
[1672862561995,51.61740712,13.224,13.213,30.0]
[1672862562301,51.61740712,13.224,13.212,113.7998]
[1672862562526,98.70852699,13.224,13.212,113.7998]
[1672862562703,141.11932542,13.224,13.212,113.7998]
[1672862562917,51.55182645,13.223,13.213,30.0]
[1672862563124,160.16672645,13.223,13.213,30.0]
[1672862563979,160.16672645,13.223,13.212,113.7998]
[1672862564180,51.55182645,13.222,13.21,30.0]
[1672862565328,141.05374475,13.222,13.21,30.0]
[1672862565776,51.55182645,13.221,13.21,30.0]
[1672862566171,98.64294632,13.221,13.21,30.0]
[1672862566496,51.55182645,13.22,13.21,30.0]
[1672862567455,51.55182645,13.22,13.209,263.3]
[1672862570083,147.55374475,13.22,13.209,263.3]
[1672862570613,51.55182645,13.219,13.209,263.3]
[1672862571451,98.64294632,13.219,13.209,263.3]
[1672862571763,51.55182645,13.218,13.209,263.3]
[1672862572604,76.79,13.217,13.201,56.86]
[1672862572916,30.0,13.215,13.198,30.0]
[1672862573109,20.0,13.214,13.199,56.87]
[1672862573318,71.55182645,13.214,13.199,56.87]
[1672862573637,51.55182645,13.213,13.199,56.87]
[1672862574172,51.55182645,13.213,13.2,30.0]
[1672862577011,51.55182645,13.213,13.199,56.87]
[1672862577748,51.55182645,13.213,13.2,30.0]
[1672862578888,51.55182645,13.213,13.199,56.87]
[1672862579221,51.05182645,13.213,13.199,56.87]
[1672862579413,51.05182645,13.213,13.2,30.0]
[1672862581343,107.86182645,13.213,13.2,30.0]
[1672862581770,51.05182645,13.213,13.2,30.0]
[1672862583559,159.08709449,13.213,13.198,30.0]
[1672862584086,108.31849312,13.212,13.198,30.0]
[1672862584387,6.51,13.21,13.196,166.0653]
[1672862584601,215.4156,13.209,13.181,97.23]
[1672862584799,30.0,13.208,13.19,30.0]
[1672862585008,20.0,13.207,13.19,30.0]
[1672862585224,166.3319183,13.207,13.19,30.0]
[1672862585425,51.50849312,13.206,13.19,30.0]
[1672862585845,108.5856,13.209,13.192,30.0]
[1672862586057,108.5856,13.209,13.194,30.0]
[1672862586265,51.50849312,13.208,13.195,109.8851]
[1672862586481,108.33849312,13.208,13.195,109.8851]
[1672862586705,155.42961299,13.208,13.196,20.0]
[1672862586914,81.50849312,13.207,13.191,56.9]
[1672862587134,30.0,13.205,13.19,30.0]
[1672862587330,76.85,13.204,13.19,30.0]
[1672862587542,146.89184286,13.204,13.19,30.0]
[1672862587853,51.50849312,13.203,13.19,30.0]
[1672862588071,51.00849312,13.203,13.19,30.0]
[1672862589222,20.0,13.204,13.19,30.0]
[1672862589547,71.46515978,13.207,13.19,30.0]
[1672862589742,56.84,13.206,13.19,30.0]
[1672862589952,20.0,13.205,13.19,30.0]
[1672862590157,71.46515978,13.205,13.19,30.0]
[1672862590374,56.85,13.204,13.19,30.0]
[1672862590901,108.31515978,13.204,13.19,30.0]
[1672862594060,155.40627965,13.204,13.19,30.0]
[1672862595623,98.55627965,13.204,13.19,30.0]
[1672862596166,51.46515978,13.204,13.19,30.0]
[1672862596808,56.85,13.203,13.19,30.0]
[1672862597019,108.31515978,13.204,13.19,30.0]
[1672862602691,758.59741318,13.279,13.192,30.0]
[1672862602692,56.8,13.215,13.192,30.0]
[1672862602906,20.0,13.214,13.193,76.89]
[1672862603427,62.41079843,13.214,13.194,30.0]
[1672862603744,42.41079843,13.214,13.196,30.0]
[1672862603969,42.41079843,13.214,13.198,30.0]
[1672862604158,42.41079843,13.214,13.199,56.87]
[1672862604578,42.41079843,13.214,13.2,30.0]
[1672862605737,87.98817155,13.214,13.2,30.0]
[1672862606580,56.81,13.213,13.2,30.0]
[1672862607000,144.78817155,13.214,13.2,30.0]
[1672862612035,87.98817155,13.214,13.2,30.0]
[1672862612475,87.98817155,13.214,13.2,86.86]
[1672862613088,45.57737312,13.214,13.2,86.86]
[1672862614780,45.57737312,13.214,13.2,30.0]
[1672862617200,87.98817155,13.214,13.2,30.0]
[1672862621846,87.98817155,13.214,13.2,86.86]
[1672862622885,87.98817155,13.214,13.2,30.0]
[1672862624782,87.98817155,13.214,13.199,30.0]
[1672862625390,45.57737312,13.214,13.201,30.0]
[1672862625945,56.77,13.222,13.202,76.86]
[1672862626252,56.77,13.222,13.203,30.0]
[1672862626253,108.2998,13.221,13.203,30.0]
[1672862626467,150.71059843,13.221,13.204,56.85]
[1672862626673,30.0,13.219,13.202,56.86]
[1672862626883,76.79,13.218,13.201,30.0]
[1672862627088,30.0,13.217,13.201,30.0]
[1672862627415,30.0,13.215,13.201,30.0]
[1672862627615,76.8,13.214,13.201,30.0]
[1672862627828,95.33334974,13.214,13.201,30.0]
[1672862628032,183.32152129,13.214,13.198,56.87]
[1672862628254,30.0,13.212,13.196,56.88]
[1672862628468,56.82,13.211,13.198,30.0]
[1672862628784,75.34334974,13.212,13.198,30.0]
[1672862629497,120.92072286,13.212,13.198,30.0]
[1672862629719,64.11072286,13.212,13.198,30.0]
[1672862634348,64.11072286,13.212,13.197,116.6241]
[1672862634962,64.11072286,13.212,13.198,30.0]
[1672862636129,106.52152129,13.212,13.198,30.0]
[1672862637082,56.82,13.211,13.197,116.6241]
[1672862637603,56.82,13.211,13.198,30.0]
[1672862637800,60.94414817,13.212,13.198,30.0]
[1672862638023,64.11072286,13.211,13.198,30.0]
[1672862638639,120.93072286,13.211,13.198,30.0]
[1672862639183,163.34152129,13.211,13.197,116.6241]
[1672862639397,163.34152129,13.211,13.198,30.0]
[1672862640018,163.34152129,13.211,13.197,116.6241]
[1672862640333,163.34152129,13.211,13.188,92.2312]
[1672862640334,30.0,13.209,13.188,92.2312]
[1672862640526,30.0,13.207,13.189,148.7143]
[1672862640739,56.84,13.206,13.19,56.91]
[1672862640958,20.0,13.205,13.191,30.0]
[1672862641169,30.0,13.204,13.19,56.91]
[1672862641389,56.85,13.203,13.189,148.7143]
[1672862641583,117.1041,13.202,13.189,148.7143]
[1672862643261,56.85,13.203,13.189,148.7143]
[1672862643471,20.0,13.205,13.189,148.7143]
[1672862643688,20.0,13.207,13.191,30.0]
[1672862644015,18.53334974,13.208,13.193,30.0]
[1672862644338,102.39737312,13.211,13.195,30.0]
[1672862644527,45.57737312,13.211,13.197,30.0]
[1672862645063,63.33,13.21,13.196,139.5007]
[1672862645261,124.27414817,13.21,13.196,139.5007]
[1672862645472,56.83,13.208,13.196,139.5007]
[1672862645908,117.77414817,13.208,13.196,139.5007]
[1672862646318,163.35152129,13.208,13.196,139.5007]
[1672862647071,163.35152129,13.208,13.191,56.9]
[1672862647282,50.0,13.207,13.19,166.5254]
[1672862647480,56.84,13.206,13.19,166.5254]
[1672862647680,20.0,13.205,13.191,30.0]
[1672862647889,187.8225,13.207,13.192,56.9]
[1672862648100,187.8225,13.207,13.193,30.0]
[1672862648536,206.35584974,13.207,13.193,30.0]
[1672862648943,30.0,13.206,13.19,166.5254]
[1672862649275,183.36152129,13.205,13.19,109.6154]
[1672862649479,30.0,13.204,13.19,109.6154]
[1672862649796,56.85,13.203,13.19,109.6154]
[1672862649984,20.0,13.205,13.19,116.1254]
[1672862650200,20.0,13.205,13.192,30.0]
[1672862650404,20.0,13.206,13.193,56.89]
[1672862650728,109.1456,13.209,13.194,20.0]
[1672862650931,109.1456,13.209,13.196,30.0]
[1672862651139,109.1456,13.209,13.197,56.88]
[1672862651695,109.1456,13.209,13.198,30.0]
[1672862653453,109.1456,13.209,13.197,56.88]
[1672862653662,109.1456,13.209,13.196,86.88]
[1672862654928,56.81,13.213,13.197,21.7811836]
[1672862655144,56.8,13.214,13.198,86.87]
[1672862655571,173.3871,13.215,13.198,86.87]
[1672862655773,20.0,13.214,13.198,86.87]
[1672862655982,20.0,13.214,13.199,30.0]
[1672862656192,20.0,13.214,13.2,56.86]
[1672862656834,20.0,13.214,13.201,30.0]
[1672862657684,20.0,13.214,13.2,56.86]
[1672862658086,38.53334974,13.214,13.2,56.86]
[1672862660420,38.53334974,13.214,13.199,56.87]
[1672862660623,30.0,13.213,13.199,56.87]
[1672862660834,86.81,13.213,13.197,263.3]
[1672862661031,30.0,13.211,13.197,263.3]
[1672862661244,56.82,13.21,13.197,263.3]
[1672862661454,56.82,13.21,13.196,30.0]
[1672862661792,30.0,13.208,13.196,30.0]
[1672862661971,108.6722,13.209,13.196,30.0]
[1672862668512,108.6722,13.209,13.196,51.7811836]
[1672862673861,108.6722,13.209,13.196,21.7811836]
[1672862675017,231.13719814,13.209,13.191,56.9]
[1672862675226,207.59674974,13.208,13.189,168.2407]
[1672862675439,207.59674974,13.208,13.19,30.0]
[1672862675744,44.31869326,13.207,13.19,30.0]
[1672862675963,56.84,13.206,13.19,30.0]
[1672862676173,20.0,13.205,13.192,30.0]
[1672862677416,20.0,13.205,13.193,21.7811836]
[1672862677643,20.0,13.205,13.194,30.0]
[1672862678049,20.0,13.206,13.194,30.0]
[1672862680692,94.31033176,13.208,13.196,30.0]
[1672862681011,108.6722,13.209,13.197,21.7811836]
[1672862681202,108.6722,13.209,13.198,56.87]
[1672862681535,108.6722,13.209,13.199,30.0]
[1672862684152,56.8,13.214,13.199,51.7811836]
[1672862684363,237.125543,13.215,13.2,56.86]
[1672862684686,20.0,13.214,13.201,30.0]
[1672862685403,20.0,13.214,13.202,56.86]
[1672862685737,20.0,13.214,13.203,30.0]
[1672862689099,20.0,13.215,13.203,51.7811836]
[1672862689840,20.0,13.215,13.203,30.0]
[1672862690785,56.79,13.217,13.204,21.7811836]
[1672862690973,150.52653176,13.219,13.206,30.0]
[1672862691188,113.0462,13.219,13.206,30.0]
[1672862692559,113.0462,13.219,13.208,30.0]
[1672862693725,150.52653176,13.219,13.205,20.0]
[1672862693927,194.84522502,13.219,13.205,20.0]
[1672862694133,251.62522502,13.219,13.205,20.0]
[1672862694568,251.62522502,13.219,13.205,50.0]
[1672862694787,30.0,13.217,13.198,56.87]
[1672862694977,185.2969,13.216,13.2,21.7811836]
[1672862695188,319.43371172,13.216,13.2,21.7811836]
[1672862695397,101.87881201,13.216,13.201,30.0]
[1672862695614,45.07881201,13.216,13.202,76.86]
[1672862695828,45.07881201,13.216,13.203,30.0]
[1672862696034,45.07881201,13.216,13.204,76.85]
[1672862696250,45.07881201,13.216,13.205,30.0]
[1672862696449,45.07881201,13.216,13.206,20.0]
[1672862696881,113.0462,13.219,13.206,20.0]
[1672862699200,158.12501201,13.219,13.206,20.0]
[1672862701599,233.43836175,13.219,13.206,20.0]
[1672862701813,278.1776682,13.219,13.206,20.0]
[1672862702030,30.0,13.217,13.203,117.5864]
[1672862702236,76.8,13.216,13.197,56.88]
[1672862702450,210.93681172,13.216,13.2,21.7811836]
[1672862702646,89.81811846,13.215,13.2,21.7811836]
[1672862702981,166.61811846,13.214,13.199,56.87]
[1672862703180,166.61811846,13.214,13.2,30.0]
[1672862703717,121.87881201,13.214,13.2,30.0]
[1672862704028,65.07881201,13.214,13.2,30.0]
[1672862704771,65.07881201,13.214,13.2,51.7811836]
[1672862704962,65.07881201,13.214,13.2,108.6411836]
[1672862708869,65.07881201,13.214,13.2,115.1511836]
[1672862713595,65.07881201,13.214,13.2,63.37]
[1672862715804,65.07881201,13.214,13.2,6.51]
[1672862718849,65.07881201,13.214,13.201,21.7811836]
[1672862719064,65.07881201,13.214,13.202,30.0]
[1672862723773,65.07881201,13.214,13.202,86.86]
[1672862723992,65.07881201,13.214,13.202,30.0]
[1672862724515,65.07881201,13.214,13.201,86.86]
[1672862726307,20.0,13.214,13.201,86.86]
[1672862726522,20.0,13.215,13.201,86.86]
[1672862727159,38.53334974,13.215,13.201,86.86]
[1672862732410,83.61216175,13.215,13.201,56.86]
[1672862732810,131.42906883,13.215,13.2,3.26]
[1672862733021,188.22906883,13.215,13.2,3.26]
[1672862733231,232.96837528,13.215,13.2,3.26]
[1672862733874,188.22906883,13.215,13.2,60.12]
[1672862734079,131.42906883,13.215,13.201,30.0]
[1672862734297,83.61216175,13.215,13.201,30.0]
[1672862735450,83.61216175,13.215,13.2,60.12]
[1672862735668,185.1514682,13.215,13.2,3.26]
[1672862736174,232.96837528,13.215,13.2,3.26]
[1672862738935,232.96837528,13.215,13.198,86.87]
[1672862739253,30.0,13.213,13.198,56.87]
[1672862739448,86.81,13.213,13.198,56.87]
[1672862739665,30.0,13.211,13.198,56.87]
[1672862740294,63.61216175,13.212,13.198,56.87]
[1672862740619,30.0,13.21,13.197,114.3311]
[1672862740810,114.621,13.209,13.197,114.3311]
[1672862741983,159.69981201,13.209,13.197,114.3311]
[1672862746691,159.69981201,13.209,13.19,3.27]
[1672862746906,76.83,13.208,13.19,3.27]
[1672862747113,30.0,13.207,13.19,3.27]
[1672862747339,76.84,13.206,13.188,214.9075]
[1672862747527,238.86645482,13.206,13.188,214.9075]
[1672862747737,18.53334974,13.205,13.188,214.9075]
[1672862747953,30.0,13.203,13.189,30.0]
[1672862748267,56.86,13.202,13.189,30.0]
[1672862748590,166.9607,13.202,13.19,3.26]
[1672862748797,155.17951201,13.202,13.19,3.26]
[1672862751748,155.17951201,13.202,13.189,30.0]
[1672862754171,155.17951201,13.202,13.188,214.9075]
[1672862754695,155.17951201,13.202,13.189,30.0]
[1672862758271,155.17951201,13.202,13.188,214.9075]
[1672862758477,155.17951201,13.202,13.189,30.0]
[1672862761206,56.86,13.201,13.188,214.9075]
[1672862761420,155.17951201,13.202,13.188,214.9075]
[1672862761632,155.17951201,13.202,13.189,30.0]
[1672862762659,110.1007,13.202,13.19,6.53]
[1672862762865,110.1007,13.202,13.19,63.44]
[1672862763093,110.1007,13.202,13.191,30.0]
[1672862764986,56.84,13.206,13.191,51.7811836]
[1672862765205,53.67498662,13.208,13.192,76.9]
[1672862765609,53.67498662,13.208,13.193,51.7811836]
[1672862765818,53.67498662,13.208,13.195,30.0]
[1672862766142,56.82,13.21,13.196,20.0]
[1672862766356,56.82,13.21,13.197,30.0]
[1672862769073,45.07881201,13.211,13.197,86.88]
[1672862778107,108.6144,13.213,13.197,108.6611836]
[1672862778317,108.6144,13.213,13.2,6.49]
[1672862778971,56.79,13.217,13.202,30.0]
[1672862779160,56.79,13.217,13.203,20.0]
[1672862779484,171.10579748,13.217,13.203,20.0]
[1672862779696,212.57375358,13.217,13.203,20.0]
[1672862779885,155.78375358,13.217,13.204,30.0]
[1672862780099,155.78375358,13.217,13.205,20.0]
[1672862780310,56.8,13.216,13.201,110.5727]
[1672862780527,20.0,13.215,13.201,110.5727]
[1672862780733,30.0,13.213,13.201,110.5727]
[1672862780953,126.37649103,13.214,13.201,110.5727]
[1672862781177,18.53334974,13.212,13.201,110.5727]
[1672862781797,44.73930645,13.213,13.201,110.5727]
[1672862782213,95.78244774,13.213,13.201,110.5727]
[1672862782629,18.53334974,13.212,13.201,110.5727]
[1672862783262,63.27265619,13.212,13.201,110.5727]
[1672862784100,18.53334974,13.211,13.201,110.5727]
[1672862784628,18.53334974,13.211,13.2,263.3]
[1672862784839,104.74061229,13.211,13.2,263.3]
[1672862785049,30.0,13.21,13.2,263.3]
[1672862785361,122.51109739,13.21,13.2,263.3]
[1672862785572,18.53334974,13.209,13.2,263.3]
[1672862786010,60.00130584,13.209,13.2,263.3]
[1672862786414,168.22080584,13.209,13.2,263.3]
[1672862789570,149.6874561,13.209,13.2,263.3]
[1672862790927,168.22080584,13.209,13.2,263.3]
[1672862791256,30.0,13.207,13.191,56.9]
[1672862791576,76.84,13.206,13.191,56.9]
[1672862791985,18.53334974,13.205,13.19,63.5]
[1672862792201,20.0,13.204,13.19,63.5]
[1672862792630,38.53334974,13.204,13.19,63.5]
[1672862793041,38.53334974,13.204,13.191,30.0]
[1672862793478,0.09593604,13.191,13.19,56.91]
[1672862793669,80.00130584,13.204,13.19,30.0]
[1672862793880,130.9543138,13.204,13.19,30.0]
[1672862794098,175.69362025,13.204,13.189,56.91]
[1672862794304,6.48,13.2,13.174,95.3768]
[1672862794622,30.0,13.198,13.179,30.0]
[1672862794839,176.3777,13.197,13.179,30.0]
[1672862795044,20.0,13.196,13.18,56.95]
[1672862795237,56.89,13.195,13.18,56.95]
[1672862795448,20.0,13.194,13.181,30.0]
[1672862796623,20.0,13.194,13.18,56.95]
[1672862796831,80.00130584,13.194,13.179,56.95]
[1672862797361,56.89,13.193,13.179,56.95]
[1672862797550,30.0,13.193,13.179,56.95]
[1672862797755,48.53334974,13.193,13.178,111.3606]
[1672862798179,90.00130584,13.193,13.178,111.3606]
[1672862798392,60.00130584,13.193,13.179,30.0]
[1672862798599,60.00130584,13.193,13.178,111.3606]
[1672862798809,6.5,13.19,13.178,111.3606]
[1672862799356,30.0,13.188,13.175,56.97]
[1672862799676,71.4679561,13.188,13.176,20.0]
[1672862800073,90.00130584,13.188,13.176,20.0]
[1672862800407,60.00130584,13.188,13.176,20.0]
[1672862801981,41.4679561,13.188,13.176,20.0]
[1672862803243,18.53334974,13.187,13.172,56.98]
[1672862803455,86.92,13.186,13.169,111.4165]
[1672862803663,20.0,13.185,13.171,30.0]
[1672862804201,38.53334974,13.185,13.171,30.0]
[1672862804922,56.92,13.187,13.171,30.0]
[1672862805139,173.7859,13.194,13.172,78.7611836]
[1672862805341,116.8959,13.194,13.173,30.0]
[1672862805565,173.7859,13.194,13.174,76.98]
[1672862805774,173.7859,13.194,13.176,30.0]
[1672862805775,215.2538561,13.194,13.176,30.0]
[1672862806000,30.0,13.193,13.177,56.96]
[1672862806197,30.0,13.191,13.177,56.96]
[1672862806620,71.4679561,13.191,13.177,56.96]
[1672862806814,6.47,13.19,13.177,56.96]
[1672862807027,6.47,13.19,13.175,175.4938]
[1672862807235,96.14392922,13.19,13.177,30.0]
[1672862808825,96.14392922,13.19,13.175,56.97]
[1672862809047,96.14392922,13.19,13.171,30.0]
[1672862809048,30.0,13.188,13.172,169.555]
[1672862809240,30.0,13.186,13.172,112.575]
[1672862809447,76.93,13.185,13.172,112.575]
[1672862809665,185.13727896,13.185,13.172,112.575]
[1672862809879,30.0,13.183,13.172,112.575]
[1672862810097,18.53334974,13.184,13.172,112.575]
[1672862810612,18.53334974,13.184,13.168,57.0]
[1672862810834,30.0,13.183,13.168,171.1433]
[1672862811150,105.47334974,13.183,13.168,171.1433]
[1672862811468,75.47334974,13.183,13.169,30.0]
[1672862812192,20.0,13.185,13.17,6.48]
[1672862812509,20.0,13.186,13.171,30.0]
[1672862812721,20.0,13.186,13.172,56.98]
[1672862813128,18.53334974,13.185,13.172,56.98]
[1672862813335,20.0,13.184,13.172,56.98]
[1672862813551,20.0,13.184,13.171,86.99]
[1672862813762,20.0,13.184,13.171,30.0]
[1672862813970,20.0,13.184,13.17,56.99]
[1672862814184,38.53334974,13.184,13.17,56.99]
[1672862814391,80.00130584,13.184,13.17,56.99]
[1672862814603,80.00130584,13.184,13.169,57.0]
[1672862814813,80.00130584,13.184,13.169,30.0]
[1672862815039,128.20727896,13.184,13.169,30.0]
[1672862815232,128.20727896,13.184,13.17,56.99]
[1672862815440,68.20597312,13.184,13.169,87.0]
[1672862815759,20.0,13.184,13.171,30.0]
[1672862816086,20.0,13.185,13.171,86.99]
[1672862817137,18.53334974,13.185,13.171,86.99]
[1672862817352,18.53334974,13.185,13.171,30.0]
[1672862817552,20.0,13.184,13.171,30.0]
[1672862817955,38.53334974,13.184,13.17,56.99]
[1672862818171,80.00130584,13.184,13.17,30.0]
[1672862819556,128.20727896,13.184,13.17,30.0]
[1672862819960,128.20727896,13.184,13.169,57.0]
[1672862820177,56.94,13.183,13.168,171.1433]
[1672862820390,30.0,13.183,13.168,171.1433]
[1672862820597,138.20727896,13.183,13.168,171.1433]
[1672862820924,108.20727896,13.183,13.169,30.0]
[1672862822514,123.67932286,13.183,13.17,56.99]
[1672862822830,20.0,13.184,13.171,30.0]
[1672862823018,20.0,13.184,13.172,56.98]
[1672862823236,20.0,13.186,13.173,30.0]
[1672862823443,20.0,13.186,13.172,56.98]
[1672862823444,38.53334974,13.186,13.172,56.98]
[1672862823665,18.53334974,13.185,13.172,56.98]
[1672862823859,18.53334974,13.185,13.171,56.99]
[1672862824072,30.0,13.183,13.171,56.99]
[1672862824394,18.53334974,13.185,13.171,56.99]
[1672862824608,60.00130584,13.183,13.168,114.1433]
[1672862825026,6.55,13.18,13.168,114.1433]
[1672862825435,116.95130584,13.179,13.168,114.1433]
[1672862825877,116.95130584,13.179,13.162,57.03]
[1672862825878,41.4679561,13.178,13.162,57.03]
[1672862826081,41.4679561,13.178,13.16,214.9148]
[1672862826082,30.0,13.176,13.16,214.9148]
[1672862826287,76.97,13.175,13.16,214.9148]
[1672862826499,185.17727896,13.175,13.16,214.9148]
[1672862826927,112.7418,13.174,13.161,30.0]
[1672862827341,18.53334974,13.174,13.161,30.0]
[1672862827654,63.47,13.18,13.162,78.8111836]
[1672862827874,6.52,13.18,13.163,30.0]
[1672862828176,96.19392922,13.18,13.165,30.0]
[1672862828393,215.84143099,13.18,13.166,20.0]
[1672862829548,140.35808125,13.18,13.166,136.8285]
[1672862830078,96.19392922,13.18,13.167,30.0]
[1672862830689,96.19392922,13.18,13.166,136.8285]
[1672862831848,114.72727896,13.18,13.166,136.8285]
[1672862832388,158.89143099,13.18,13.166,20.0]
[1672862832703,56.95,13.179,13.163,20.0]
[1672862833098,48.19561279,13.178,13.162,20.0]
[1672862833314,48.19561279,13.178,13.163,30.0]
[1672862833524,48.19561279,13.178,13.164,20.0]
[1672862834678,48.19561279,13.178,13.166,30.0]
[1672862835624,48.19561279,13.178,13.161,204.8747]
[1672862835625,20.0,13.177,13.161,204.8747]
[1672862835835,30.0,13.176,13.161,174.8747]
[1672862836040,76.97,13.175,13.161,117.8447]
[1672862836260,108.2773,13.174,13.161,117.8447]
[1672862836986,216.47421863,13.174,13.161,117.8447]
[1672862837321,56.98,13.173,13.161,117.8447]
[1672862837633,165.17691863,13.173,13.161,117.8447]
[1672862838160,146.64356889,13.173,13.161,117.8447]
[1672862838988,165.17691863,13.173,13.161,117.8447]
[1672862839412,6.55,13.17,13.155,57.06]
[1672862839625,6.55,13.17,13.156,20.0]
[1672862839834,54.74561279,13.17,13.156,77.05]
[1672862840160,73.27896253,13.17,13.156,77.05]
[1672862840372,57.0,13.169,13.156,20.0]
[1672862840903,30.0,13.168,13.156,20.0]
[1672862841729,105.19561279,13.169,13.156,20.0]
[1672862843219,105.19561279,13.169,13.156,50.0]
[1672862843424,48.19561279,13.169,13.156,20.0]
[1672862843617,48.19561279,13.169,13.156,50.0]
[1672862843823,48.19561279,13.169,13.156,20.0]
[1672862844477,48.19561279,13.169,13.156,50.0]
[1672862845823,48.19561279,13.169,13.156,20.0]
[1672862846779,48.19561279,13.169,13.156,50.0]
[1672862847295,6.55,13.17,13.156,50.0]
[1672862847826,6.55,13.17,13.156,20.0]
[1672862848986,63.54,13.17,13.156,20.0]
[1672862849200,48.0179561,13.17,13.156,20.0]
[1672862851078,114.74691863,13.17,13.156,20.0]
[1672862851641,57.0,13.169,13.156,20.0]
[1672862851817,30.0,13.168,13.156,20.0]
[1672862852027,57.0,13.169,13.156,20.0]
[1672862852660,25.08334974,13.17,13.156,20.0]
[1672862852874,6.55,13.17,13.156,50.0]
[1672862853084,6.55,13.17,13.157,57.05]
[1672862853715,48.0179561,13.17,13.156,20.0]
[1672862853924,30.0,13.169,13.156,20.0]
[1672862854137,87.0,13.169,13.156,20.0]
[1672862854459,195.19691863,13.169,13.156,20.0]
[1672862855504,165.19691863,13.169,13.156,20.0]
[1672862857613,146.66356889,13.169,13.156,20.0]
[1672862858229,165.19691863,13.169,13.156,20.0]
[1672862858654,165.19691863,13.169,13.156,50.0]
[1672862858977,108.19691863,13.169,13.156,50.0]
[1672862859170,63.54,13.17,13.156,107.05]
[1672862859171,6.55,13.17,13.156,107.05]
[1672862859381,56.98,13.173,13.156,107.05]
[1672862859591,56.98,13.173,13.157,30.0]
[1672862860011,48.19561279,13.172,13.157,30.0]
[1672862860231,56.99,13.171,13.157,30.0]
[1672862860449,6.55,13.17,13.157,30.0]
[1672862861390,54.74561279,13.17,13.156,107.05]
[1672862861604,54.74561279,13.17,13.156,50.0]
[1672862861816,54.74561279,13.17,13.157,30.0]
[1672862862555,165.2573,13.174,13.157,30.0]
[1672862862750,183.79064974,13.174,13.158,57.05]
[1672862862963,231.98626253,13.174,13.158,57.05]
[1672862863186,231.98626253,13.174,13.159,30.0]